bitfinex-derivatives/quotes_SOLF0:USTF0_20240920
["timestamp","ask_amount","ask_price","bid_price","bid_amount"]
[1726807368486,27.2658,148.0,147.73,42.28]
[1726807368689,49.887,147.92,147.78,42.28]
[1726807368894,3.36426027,147.91,147.81,42.28]
[1726807369098,3.3804,147.89,147.81,45.6622]
[1726807369392,49.887,147.92,147.81,45.6622]
[1726807369796,3.3804,147.89,147.82,3.3819]
[1726807369985,3.3804,147.89,147.81,42.28]
[1726807370387,3.3804,147.89,147.81,45.662]
[1726807370795,3.3804,147.89,147.81,42.28]
[1726807370990,3.3804,147.89,147.81,45.6621]
[1726807371993,3.3806,147.88,147.81,45.6621]
[1726807372599,3.3804,147.89,147.82,3.3819]
[1726807372800,3.3804,147.89,147.81,42.28]
[1726807372801,7.607,147.92,147.84,42.28]
[1726807373098,3.3791,147.95,147.88,3.3806]
[1726807373501,42.28,147.99,147.86,42.28]
[1726807373791,3.32025796,147.98,147.86,42.28]
[1726807374001,3.3788,147.96,147.89,3.3801]
[1726807374194,2.4895,148.01,147.89,3.33378932]
[1726807374195,3.46639667,147.98,147.89,3.33378932]
[1726807374394,42.28,147.96,147.84,42.28]
[1726807374598,3.3794,147.94,147.84,42.28]
[1726807374898,42.28,147.97,147.86,42.28]
[1726807375298,3.3791,147.95,147.88,3.3804]
[1726807375600,5.94946928,148.01,147.86,42.28]
[1726807375894,42.28,147.99,147.89,42.28]
[1726807376096,0.94946928,148.01,147.89,42.28]
[1726807376299,3.3787,147.97,147.9,3.3799]
[1726807376500,3.44742294,148.01,147.89,45.67601934]
[1726807376902,4.9941,148.02,147.89,45.67601934]
[1726807377290,3.44708476,148.01,147.89,45.67601934]
[1726807378002,3.3783,147.98,147.91,3.3797]
[1726807378597,3.3781,147.99,147.92,3.3795]
[1726807378797,3.44708476,148.01,147.92,3.3795]
[1726807379197,4.9941,148.02,147.9,5.8844]
[1726807379399,42.28,147.99,147.9,2.5044]
[1726807380603,42.28,147.99,147.9,5.8843]
[1726807381291,3.3787,147.97,147.91,3.3799]
[1726807381492,3.3787,147.97,147.9,2.5044]
[1726807381902,3.3787,147.97,147.9,5.8843]
[1726807382093,3.3783,147.98,147.9,2.5044]
[1726807382297,8.36644663,148.02,147.91,42.28]
[1726807382601,8.36644663,148.02,147.92,3.3795]
[1726807382900,42.28,147.97,147.88,3.3804]
[1726807383102,42.28,148.0,147.88,45.61119667]
[1726807383595,45.61085854,148.17,147.94,42.28]
[1726807383596,6.832,148.08,147.94,42.28]
[1726807383803,4.8009,148.05,147.94,42.28]
[1726807384003,50.47938332,148.05,147.94,49.06603642]
[1726807384397,3.3779,148.0,147.94,49.06603642]
[1726807384602,42.28,147.98,147.84,42.28]
[1726807384799,42.28,147.98,147.87,42.28]
[1726807385001,45.71533883,148.01,147.91,3.3797]
[1726807385203,45.71533883,148.01,147.89,42.28]
[1726807385400,45.71533883,148.01,147.89,45.62032601]
[1726807385597,3.3789,147.96,147.89,49.00052601]
[1726807385802,3.3789,147.96,147.89,45.62032601]
[1726807386003,3.3791,147.95,147.89,3.34032601]
[1726807386201,3.3791,147.95,147.87,42.28]
[1726807386709,3.3789,147.96,147.87,42.28]
[1726807386907,3.3789,147.96,147.87,45.69821874]
[1726807387614,42.28,148.01,147.89,42.28]
[1726807388002,3.3782,147.99,147.89,45.63396651]
[1726807388405,42.28,148.04,147.92,42.28]
[1726807388707,45.58019754,148.04,147.93,2.4577]
[1726807388904,42.28,148.02,147.93,2.4577]
[1726807389211,3.3786,147.97,147.93,2.4577]
[1726807389709,3.3783,147.98,147.93,2.4577]
[1726807390410,42.28,148.02,147.93,2.4577]
[1726807390712,42.28,148.04,147.93,2.4577]
[1726807391208,42.28,148.02,147.93,2.4577]
[1726807391408,42.28,148.0,147.89,42.28]
[1726807391600,45.66743426,148.0,147.89,3.30696622]
[1726807391804,45.66743426,148.0,147.87,42.28]
[1726807392004,3.3794,147.94,147.87,45.6606]
[1726807392202,42.28,147.95,147.86,2.38]
[1726807392506,42.28,147.95,147.86,5.77656299]
[1726807392905,42.28,147.95,147.86,2.38]
[1726807393107,42.28,147.95,147.86,5.78492227]
[1726807393302,3.3792,147.94,147.87,3.3806]
[1726807393507,42.28,147.95,147.87,6.73648436]
[1726807394712,3.3795,147.93,147.87,6.73648436]
[1726807395104,42.28,147.95,147.87,6.73648436]
[1726807395501,5.0543,147.96,147.87,3.35588436]
[1726807395708,5.0543,147.96,147.87,42.28]
[1726807396012,5.0543,147.96,147.87,48.97049731]
[1726807396311,5.0543,147.96,147.87,6.69049731]
[1726807396711,3.3796,147.93,147.87,6.69049731]
[1726807397412,3.3797,147.92,147.87,3.30989731]
[1726807397614,47.3343,147.96,147.86,2.38]
[1726807397803,3.3797,147.92,147.86,5.761]
[1726807398003,47.3343,147.96,147.86,5.80690022]
[1726807398407,3.3792,147.94,147.86,5.80690022]
[1726807398910,5.0543,147.96,147.86,5.80690022]
[1726807399109,47.3343,147.96,147.86,5.80690022]
[1726807399409,47.3343,147.96,147.83,42.28]
[1726807399608,2.514,147.99,147.88,42.28]
[1726807400005,3.33863654,147.98,147.89,25.98]
[1726807400312,2.514,147.99,147.89,25.98]
[1726807400512,6.832,148.08,147.98,25.98]
[1726807400709,8.51774722,148.14,148.03,19.148]
[1726807400910,8.51774722,148.14,148.07,25.98]
[1726807401116,6.03114722,148.14,148.07,25.98]
[1726807401508,6.03114722,148.14,148.07,29.42956368]
[1726807401904,9.40584722,148.14,148.07,3.3762]
[1726807402103,6.03114722,148.14,148.08,42.17]
[1726807402708,6.03114722,148.14,148.08,3.39255404]
[1726807402911,6.03114722,148.14,148.05,42.17]
[1726807403116,6.03114722,148.14,148.09,42.17]
[1726807403320,6.03114722,148.14,148.09,45.4777824]
[1726807403509,3.3749,148.13,148.09,3.3077824]
[1726807403717,6.03114722,148.14,148.07,42.17]
[1726807403912,6.03114722,148.14,148.07,45.60038042]
[1726807404308,6.03114722,148.14,148.07,3.42497666]
[1726807404716,6.03114722,148.14,148.06,42.17]
[1726807404911,6.03114722,148.14,148.06,45.50986729]
[1726807405312,6.03114722,148.14,148.08,42.17]
[1726807405718,9.40584722,148.14,148.08,42.17]
[1726807405915,6.03114722,148.14,148.06,45.50986729]
[1726807406109,6.03114722,148.14,148.06,42.17]
[1726807406310,42.17,148.12,147.98,45.59328798]
[1726807407005,3.3762,148.08,148.0,3.3778]
[1726807407416,42.17,148.12,147.98,42.17]
[1726807407615,3.3764,148.07,147.98,45.55951442]
[1726807408010,7.5187,148.13,148.01,42.17]
[1726807408215,4.9355,148.13,148.01,42.17]
[1726807408413,47.1055,148.13,148.01,45.54566726]
[1726807408608,42.17,148.1,147.97,42.17]
[1726807408813,42.17,148.1,147.97,45.4919706]
[1726807409216,4.9355,148.13,147.96,135.18]
[1726807409217,42.17,148.07,147.96,135.18]
[1726807409517,47.1055,148.13,147.96,138.52493898]
[1726807409518,42.17,148.05,147.96,138.52493898]
[1726807409721,3.3774,148.02,147.96,138.52493898]
[1726807410216,42.17,148.05,147.96,138.52493898]
[1726807410217,42.17,148.05,147.96,135.18]
[1726807410422,42.17,148.05,147.96,138.62762114]
[1726807410621,42.17,148.05,147.96,135.18]
[1726807410817,42.17,148.05,147.96,138.56513364]
[1726807411421,3.3772,148.03,147.96,141.94383364]
[1726807411818,3.3772,148.03,147.96,138.56513364]
[1726807412021,3.3774,148.02,147.96,138.56513364]
[1726807412222,42.17,148.05,147.96,138.56513364]
[1726807412422,3.3775,148.02,147.96,138.56513364]
[1726807412624,42.17,148.05,147.96,138.56513364]
[1726807413624,2.4268,148.06,147.96,138.56513364]
[1726807414226,2.4268,148.06,147.96,141.94383364]
[1726807414425,2.4268,148.06,147.96,138.56513364]
[1726807414629,3.3771,148.03,147.96,138.56513364]
[1726807414826,2.4268,148.06,147.96,138.56513364]
[1726807415424,42.17,148.1,147.97,42.17]
[1726807415823,3.3767,148.05,147.97,42.17]
[1726807416225,3.3769,148.04,147.97,42.17]
[1726807416428,5.9826801,148.12,147.97,42.17]
[1726807416429,42.17,148.1,147.97,42.17]
[1726807416728,42.17,148.1,147.96,138.56513364]
[1726807416729,44.6916,148.12,148.03,3.377]
[1726807416930,44.6916,148.12,148.0,42.17]
[1726807417229,44.6916,148.12,148.0,45.5648458]
[1726807417624,42.17,148.1,147.97,42.17]
[1726807417820,3.3762,148.08,147.99,42.17]
[1726807418023,2.5216,148.12,147.99,45.55403204]
[1726807418427,3.3756,148.1,148.02,42.17]
[1726807419020,3.3754,148.11,148.05,3.3765]
[1726807419425,3.3754,148.11,148.06,3.3764]
[1726807419728,4.9355,148.13,148.04,42.17]
[1726807419929,2.4496,148.13,148.04,42.17]
[1726807421626,3.3757,148.1,148.02,42.17]
[1726807421925,2.4496,148.13,148.03,25.93]
[1726807422128,2.4496,148.13,148.03,29.24274091]
[1726807422325,3.3753,148.11,148.06,3.3763]
[1726807422832,2.4496,148.13,148.03,29.24274091]
[1726807423328,3.3752,148.12,148.03,29.24274091]
[1726807423927,2.4496,148.13,148.03,25.93]
[1726807424534,2.4496,148.13,148.03,29.34439602]
[1726807425028,28.3796,148.13,148.0,161.07]
[1726807425233,25.93,148.11,148.0,135.14]
[1726807425435,2.5782,148.1,148.0,135.14]
[1726807425829,2.5782,148.1,148.0,138.57061218]
[1726807426325,2.5782,148.1,148.0,164.50061218]
[1726807426722,3.3761,148.08,148.03,3.377]
[1726807427127,2.5782,148.1,148.0,164.50061218]
[1726807427334,3.3764,148.07,148.02,3.3773]
[1726807427527,2.5782,148.1,148.02,3.3773]
[1726807428028,2.4496,148.13,148.04,25.93]
[1726807428636,2.4496,148.13,148.02,25.93]
[1726807428831,28.3796,148.13,147.97,135.14]
[1726807429130,28.3796,148.13,147.99,25.93]
[1726807429440,31.79694585,148.13,148.02,25.93]
[1726807429735,31.79694585,148.13,148.05,3.3767]
[1726807429736,3.3756,148.1,148.05,3.3767]
[1726807429930,28.3796,148.13,148.05,3.3440398]
[1726807430125,28.3796,148.13,148.05,3.3765]
[1726807430331,28.3796,148.13,148.05,3.38930713]
[1726807430529,28.3796,148.13,148.02,25.93]
[1726807430727,3.3756,148.1,148.05,3.3765]
[1726807431034,28.3796,148.13,148.05,3.2974212]
[1726807431230,3.3757,148.1,148.05,3.3767]
[1726807431425,3.3757,148.1,148.05,6.72141299]
[1726807431938,3.3754,148.11,148.06,3.3763]
[1726807432232,28.3796,148.13,148.06,3.3763]
[1726807432536,25.93,148.1,147.98,135.12]
[1726807432736,25.93,148.1,147.89,135.12]
[1726807432930,25.93,148.08,147.96,25.93]
[1726807433233,25.93,148.08,147.99,3.3779]
[1726807433234,2.5766,148.07,147.99,3.3779]
[1726807433736,3.3769,148.04,147.99,3.3779]
[1726807434035,3.3767,148.05,148.0,3.3778]
[1726807434336,2.5766,148.07,147.96,25.93]
[1726807434533,2.5766,148.07,147.96,29.23799574]
[1726807434733,3.3767,148.05,148.01,3.3776]
[1726807434932,2.5766,148.07,147.96,29.23799574]
[1726807435128,3.3769,148.05,147.96,29.23799574]
[1726807435433,2.5766,148.07,147.99,3.378]
[1726807435631,2.5766,148.07,147.96,29.23799574]
[1726807435833,2.5766,148.07,147.98,25.93]
[1726807436431,2.5766,148.07,148.02,3.3772]
[1726807436736,2.5766,148.07,148.02,6.69702208]
[1726807437132,3.3767,148.05,148.02,3.31982208]
[1726807437327,2.5766,148.07,147.98,25.93]
[1726807437626,2.5766,148.07,148.01,3.3775]
[1726807437627,3.3765,148.06,148.01,3.3775]
[1726807437936,3.3765,148.06,148.01,6.70859008]
[1726807438136,3.3765,148.06,148.02,3.3773]
[1726807438336,2.5766,148.07,148.02,3.3773]
[1726807438542,2.5766,148.07,147.98,25.93]
[1726807438833,3.3765,148.06,147.98,25.93]
[1726807439230,25.93,148.11,147.98,29.37730661]
[1726807439432,3.32083576,148.12,148.01,25.93]
[1726807439433,2.5578,148.12,148.01,25.93]
[1726807439842,3.376,148.09,148.04,3.3767]
[1726807440043,2.5578,148.12,148.04,6.81387145]
[1726807440246,2.5578,148.12,148.04,3.3767]
[1726807440745,2.5578,148.12,148.04,6.72096579]
[1726807441040,2.5578,148.12,148.04,3.34426579]
[1726807441231,2.5578,148.12,148.01,25.93]
[1726807441431,2.5578,148.12,148.02,3.3773]
[1726807441636,25.93,148.11,148.01,3.4009032]
[1726807441841,25.93,148.11,147.99,25.93]
[1726807442040,25.93,148.08,147.96,25.93]
[1726807442238,25.93,148.06,147.94,161.07]
[1726807442544,3.3776,148.01,147.96,3.3786]
[1726807442840,2.4557,148.05,147.94,164.36752817]
[1726807443040,2.5084,148.04,147.97,3.3783]
[1726807443241,2.5084,148.04,147.94,161.07]
[1726807443444,2.5084,148.04,147.94,164.49184846]
[1726807443640,3.3775,148.02,147.97,3.3784]
[1726807443838,2.5084,148.04,147.94,161.07]
[1726807444143,3.3777,148.01,147.96,3.3787]
[1726807444643,2.5084,148.04,147.96,3.3787]
[1726807444843,3.3779,148.0,147.96,3.392373]
[1726807445040,3.3779,148.0,147.94,161.07]
[1726807445537,3.3779,148.0,147.96,3.3786]
[1726807446239,3.3777,148.01,147.97,3.3784]
[1726807446642,2.5084,148.04,147.96,25.93]
[1726807447041,5.8854,148.04,148.0,3.3777]
[1726807447550,2.5084,148.04,148.01,3.3775]
[1726807447844,28.3662,148.13,148.01,25.93]
[1726807448043,33.4755,148.13,148.02,3.3772]
[1726807448239,33.4755,148.13,148.02,3.4450762]
[1726807448443,33.4755,148.13,148.01,25.93]
[1726807448641,3.35350037,148.12,148.01,25.93]
[1726807449254,33.4755,148.13,148.01,25.93]
[1726807449459,7.5455,148.13,148.03,25.93]
[1726807449750,3.3757,148.1,148.05,3.3766]
[1726807450052,7.5455,148.13,148.03,29.2507223]
[1726807450445,3.3755,148.1,148.05,3.3767]
[1726807450955,3.3758,148.09,148.04,3.3768]
[1726807451154,3.3758,148.09,148.04,6.70383212]
[1726807451656,3.32635652,148.1,147.98,25.93]
[1726807452352,3.32635652,148.1,147.98,29.24588459]
[1726807452548,3.3765,148.07,148.03,3.3771]
[1726807452747,3.3765,148.07,147.98,29.24588459]
[1726807452971,3.42195506,148.1,147.98,29.24588459]
[1726807453151,3.42195506,148.1,148.03,3.3771]
[1726807453758,3.376,148.08,148.03,3.3771]
[1726807453949,3.42195506,148.1,148.02,3.3773]
[1726807454451,25.93,148.11,148.0,3.3777]
[1726807454656,29.38846333,148.11,147.98,29.24588459]
[1726807454954,7.5455,148.13,147.98,3.3783]
[1726807455158,25.93,148.07,147.98,3.40203862]
[1726807455357,5.1764,148.06,147.94,25.93]
[1726807455558,3.3778,148.01,147.94,25.93]
[1726807455755,3.3778,148.01,147.96,3.3787]
[1726807456055,3.3778,148.01,147.94,29.27527603]
[1726807456056,3.3778,148.01,147.94,25.93]
[1726807456258,28.5365,148.05,147.94,29.37123183]
[1726807456259,3.33885645,148.04,147.94,29.37123183]
[1726807456655,27.018,148.17,147.99,25.93]
[1726807456858,2.5813,148.11,147.99,25.93]
[1726807457163,3.3759,148.09,147.99,25.93]
[1726807457558,3.3759,148.09,148.04,3.3767]
[1726807457763,3.3759,148.09,148.05,3.34797901]
[1726807457951,2.5951,148.1,148.05,3.34797901]
[1726807458151,2.5951,148.1,148.06,3.3764]
[1726807458360,3.3758,148.09,148.05,3.30777218]
[1726807458558,3.3758,148.09,148.01,25.93]
[1726807458861,3.3758,148.09,148.04,3.3768]
[1726807459062,3.3758,148.09,148.04,6.79944884]
[1726807460366,2.5951,148.1,148.04,3.42264884]
[1726807460559,2.5951,148.1,147.99,25.93]
[1726807461163,2.5951,148.1,148.01,25.93]
[1726807461363,3.3759,148.09,148.04,3.3767]
[1726807461562,3.3759,148.09,148.05,3.38716125]
[1726807462166,5.9707,148.1,148.05,6.76366125]
[1726807462464,5.9707,148.1,148.05,3.3765]
[1726807462868,3.3758,148.09,148.04,3.3769]
[1726807463460,25.93,148.09,147.98,25.93]
[1726807463662,25.93,148.07,147.96,25.93]
[1726807463960,25.93,148.05,147.94,164.50283435]
[1726807464156,3.3774,148.02,147.97,3.3783]
[1726807464364,3.3774,148.02,147.94,164.50283435]
[1726807464760,3.3778,148.01,147.96,3.3786]
[1726807465568,3.3778,148.0,147.95,3.3789]
[1726807466161,28.4044,148.03,147.91,25.93]
[1726807466863,3.3784,147.98,147.93,3.3794]
[1726807467273,3.378,148.0,147.94,3.3791]
[1726807467458,31.83002089,148.03,147.94,3.3791]
[1726807468565,31.83002089,148.03,147.94,3.379]
[1726807468966,31.83002089,148.03,147.91,29.35562089]
[1726807469466,3.378,148.0,147.94,3.3791]
[1726807469770,3.378,148.0,147.91,29.35562089]
[1726807470170,3.378,148.0,147.95,3.379]
[1726807471171,3.3781,147.99,147.95,3.379]
[1726807471371,3.3781,147.99,147.94,3.3791]
[1726807472071,31.83002089,148.03,147.91,29.35562089]
[1726807472568,3.3781,147.99,147.94,3.3791]
[1726807473071,3.3779,148.0,147.95,3.3789]
[1726807473268,3.3779,148.0,147.91,29.35562089]
[1726807473269,31.83002089,148.03,147.91,29.35562089]
[1726807474166,3.3782,147.99,147.94,3.379]
[1726807474372,31.83002089,148.03,147.91,29.35562089]
[1726807474572,31.83002089,148.03,147.95,3.379]
[1726807474573,3.378,148.0,147.95,3.379]
[1726807474775,31.83002089,148.03,147.91,29.35562089]
[1726807475172,25.93,148.01,147.91,3.42562089]
[1726807475371,25.93,148.01,147.89,25.93]
[1726807475770,2.4744,148.03,147.89,25.93]
[1726807475967,25.93,147.99,147.89,29.29770701]
[1726807476169,3.3786,147.97,147.89,29.29770701]
[1726807476366,29.38154472,147.99,147.89,29.29770701]
[1726807477072,3.3787,147.97,147.89,29.29770701]
[1726807477472,29.38154472,147.99,147.89,29.29770701]
[1726807477669,2.501,147.96,147.89,29.35191641]
[1726807477869,2.4897,147.95,147.89,25.93]
[1726807478474,2.4897,147.95,147.89,29.38200439]
[1726807478672,2.4897,147.95,147.89,3.45200439]
[1726807478877,2.4897,147.95,147.87,25.93]
[1726807478878,5.33868322,147.95,147.87,25.93]
[1726807479078,2.0334,147.95,147.87,29.23832582]
[1726807479678,5.37462823,147.95,147.87,29.23832582]
[1726807479879,3.3792,147.94,147.9,3.38]
[1726807480276,3.3792,147.94,147.89,3.3802]
[1726807480579,3.3792,147.94,147.87,25.93]
[1726807480781,3.3792,147.94,147.88,3.31823425]
[1726807480977,5.43549465,147.95,147.88,3.31823425]
[1726807481486,3.3796,147.93,147.88,6.69863425]
[1726807481781,3.3796,147.93,147.88,3.31823425]
[1726807481979,25.93,147.94,147.78,10.49428012]
[1726807482185,2.0334,147.95,147.78,5.86796192]
[1726807482186,5.39288816,147.95,147.78,5.86796192]
[1726807482387,5.39288816,147.95,147.79,32.93965544]
[1726807482388,25.93,147.91,147.79,32.93965544]
[1726807482581,25.93,147.91,147.79,25.93]
[1726807482582,29.3222884,147.91,147.79,25.93]
[1726807483082,29.34937519,147.91,147.79,29.29795601]
[1726807483679,3.3809,147.87,147.82,3.3819]
[1726807483874,29.34937519,147.91,147.79,29.29795601]
[1726807484181,25.93,147.89,147.81,3.3821]
[1726807484382,4.9768,147.88,147.81,3.3821]
[1726807484581,4.9768,147.88,147.82,3.3534098]
[1726807484782,3.3812,147.86,147.81,3.3821]
[1726807485281,3.3811,147.86,147.81,3.3821]
[1726807485780,3.3815,147.85,147.8,3.3823]
[1726807486086,3.44476918,147.85,147.79,3.35747418]
[1726807486284,3.44476918,147.85,147.74,28.4317]
[1726807486285,25.93,147.87,147.78,3.3828]
[1726807486478,29.290181,147.87,147.79,3.38454239]
[1726807486883,29.290181,147.87,147.79,3.3825]
[1726807487081,3.3814,147.85,147.79,3.29927751]
[1726807487279,29.290181,147.87,147.76,25.93]
[1726807487580,29.290181,147.87,147.79,3.3825]
[1726807487987,29.290181,147.87,147.78,3.3828]
[1726807488283,29.290181,147.87,147.76,29.2722483]
[1726807488682,3.3816,147.84,147.76,29.2722483]
[1726807489077,25.93,147.87,147.76,25.93]
[1726807489278,25.93,147.87,147.76,29.26356399]
[1726807489279,29.36102277,147.87,147.76,29.26356399]
[1726807489483,29.36102277,147.87,147.76,3.33356399]
[1726807489681,29.36102277,147.87,147.74,2.5017]
[1726807489984,25.93,147.84,147.73,25.93]
[1726807490187,2.5109,147.83,147.73,29.35527]
[1726807490485,3.3823,147.81,147.73,29.35527]
[1726807491186,3.3823,147.81,147.76,3.3832]
[1726807491489,3.3823,147.81,147.73,29.35527]
[1726807491786,3.3824,147.8,147.73,25.93]
[1726807491988,3.3824,147.8,147.73,29.27777673]
[1726807492386,3.3826,147.79,147.76,3.3832]
[1726807492780,3.3826,147.79,147.71,26.482]
[1726807493086,2.5109,147.83,147.74,3.3836]
[1726807493087,3.33029779,147.81,147.74,3.3836]
[1726807493280,25.93,147.82,147.74,3.3836]
[1726807493485,3.383,147.78,147.74,3.3836]
[1726807493977,3.3827,147.79,147.71,26.482]
[1726807494180,3.3827,147.79,147.71,29.92972623]
[1726807494386,2.5184,147.81,147.71,26.482]
[1726807494888,5.95495869,147.81,147.71,29.9094216]
[1726807495586,2.5184,147.81,147.71,29.9094216]
[1726807495784,3.3825,147.8,147.76,3.3832]
[1726807495980,2.5184,147.81,147.76,3.3832]
[1726807497484,2.5184,147.81,147.74,3.3836]
[1726807497882,2.5184,147.81,147.71,26.482]
[1726807498083,3.3828,147.79,147.75,3.3834]
[1726807498279,2.5184,147.81,147.73,25.93]
[1726807498885,2.5109,147.83,147.76,25.93]
[1726807499288,3.3822,147.81,147.78,3.3827]
[1726807499480,3.3822,147.81,147.73,25.93]
[1726807499882,3.3824,147.8,147.77,3.3829]
[1726807500182,3.41884042,147.84,147.76,25.93]
[1726807500383,3.3814,147.85,147.82,3.3819]
[1726807500584,2.3789,147.86,147.82,3.3819]
[1726807500887,2.585,147.92,147.83,25.93]
[1726807501586,2.585,147.92,147.84,3.3792478]
[1726807501991,2.585,147.92,147.83,25.93]
[1726807502189,3.3805,147.89,147.85,3.3811]
[1726807502490,28.515,147.92,147.85,3.3811]
[1726807502690,3.3803,147.9,147.85,3.3811]
[1726807503889,3.3804,147.89,147.85,3.3811]
[1726807504290,3.3815,147.84,147.75,135.34]
[1726807504493,3.3815,147.84,147.75,164.60502942]
[1726807504693,3.3815,147.84,147.79,3.3825]
[1726807504893,2.6274,147.87,147.75,161.27]
[1726807505189,28.4562,147.86,147.78,3.3828]
[1726807505394,3.3815,147.84,147.75,164.72983935]
[1726807505793,5.86765595,147.86,147.75,164.72983935]
[1726807506397,28.4562,147.86,147.78,3.3827]
[1726807506593,3.3823,147.81,147.77,3.39289248]
[1726807506797,3.3823,147.81,147.75,161.27]
[1726807507394,2.5854,147.85,147.75,29.24844984]
[1726807507594,2.5854,147.85,147.78,25.93]
[1726807507795,25.93,147.91,147.78,25.93]
[1726807507994,3.46293624,147.9,147.8,25.93]
[1726807508193,3.46293624,147.9,147.8,29.39632]
[1726807508389,5.1889,147.92,147.8,29.39632]
[1726807508894,8.58561016,147.92,147.8,29.39632]
[1726807509295,8.58561016,147.92,147.84,3.3813]
[1726807509799,25.93,147.91,147.8,3.46632]
[1726807509996,3.3813,147.85,147.81,3.3821]
[1726807510200,3.3813,147.85,147.77,25.93]
[1726807510498,3.3813,147.85,147.82,3.3819]
[1726807510895,3.3815,147.84,147.77,29.26108305]
[1726807511095,3.3815,147.84,147.8,3.3823]
[1726807511298,3.3816,147.84,147.8,3.3823]
[1726807511899,25.93,147.88,147.77,29.26108305]
[1726807512300,3.3818,147.83,147.77,3.33108305]
[1726807512496,3.3818,147.83,147.75,25.93]
[1726807512702,2.3875,147.85,147.75,25.93]
[1726807512897,3.3819,147.82,147.79,3.3825]
[1726807514197,3.3819,147.82,147.78,3.3828]
[1726807514501,2.3875,147.85,147.78,3.3828]
[1726807514502,3.3823,147.81,147.78,3.3828]
[1726807514703,3.45796494,147.84,147.78,3.3826]
[1726807515099,3.45796494,147.84,147.75,3.45119788]
[1726807515100,2.3875,147.85,147.75,29.38119788]
[1726807515593,3.3819,147.83,147.75,29.38119788]
[1726807515999,3.3819,147.83,147.8,3.3823]
[1726807517098,3.382,147.82,147.79,3.3825]
[1726807517294,25.93,147.81,147.66,112.13916296]
[1726807517498,28.5106,147.81,147.68,25.93]
[1726807517700,31.94679925,147.81,147.68,29.28499722]
[1726807518502,31.94679925,147.81,147.75,3.3835]
[1726807518700,2.5806,147.81,147.71,25.93]
[1726807519004,29.25352772,147.83,147.71,25.93]
[1726807519602,3.3827,147.79,147.71,25.93]
[1726807520002,29.25352772,147.83,147.71,25.93]
[1726807520202,25.93,147.83,147.77,3.3829]
[1726807520697,25.93,147.83,147.77,3.40036251]
[1726807520901,25.93,147.83,147.73,25.93]
[1726807521203,3.3823,147.81,147.77,3.3829]
[1726807521803,3.3824,147.8,147.77,3.3829]
[1726807522000,16.25,147.82,147.76,3.3832]
[1726807522506,3.3825,147.8,147.76,3.3832]
[1726807523001,3.3827,147.79,147.76,3.3832]
[1726807523305,16.25,147.8,147.75,3.41693419]
[1726807523602,16.25,147.8,147.74,3.3836]
[1726807524295,3.383,147.78,147.74,3.3836]
[1726807524496,3.383,147.78,147.75,3.3835]
[1726807525007,3.383,147.78,147.71,16.25]
[1726807525008,3.3833,147.77,147.73,6.83727458]
[1726807525203,3.3833,147.77,147.73,3.3839]
[1726807525408,16.25,147.78,147.73,3.3839]
[1726807525609,16.25,147.78,147.72,3.3842]
[1726807525798,16.25,147.76,147.72,3.3842]
[1726807525999,19.6334,147.76,147.73,3.3839]
[1726807526204,18.7367,147.78,147.69,16.25]
[1726807526401,18.7367,147.78,147.69,19.62519646]
[1726807526604,3.3836,147.75,147.72,3.3841]
[1726807527505,16.25,147.77,147.72,3.3841]
[1726807528110,3.3838,147.75,147.72,3.3841]
[1726807528305,16.25,147.77,147.72,3.3841]